fUSD/lending_fUSD_20250110
["ID","MTS","AMOUNT","RATE_DAILY","PERIOD"]
[348361347,1736467231561,150.0,0.00015047,120]
[348361348,1736467290781,150.0,0.00016347,120]
[348361349,1736467351328,150.0,0.0001774,120]
[348361350,1736467410816,150.0,0.00017067,120]
[348361351,1736467470827,150.0,0.00018289,120]
[348361352,1736467531827,150.0,0.00018543,120]
[348361355,1736467591305,150.0,0.00019093,120]
[348361365,1736467650830,150.0,0.00019674,120]
[348361367,1736467687250,1038.46,8.219e-05,2]
[348361368,1736467710764,150.0,0.00017515,120]
[348361369,1736467770782,150.0,0.00017991,120]
[348361370,1736467828686,500.0,0.0002,120]
[348361371,1736467830761,150.0,0.00018725,120]
[348361374,1736467831755,-303.04274977,8.948e-05,2]
[348361375,1736467831818,-512.95725023,8.948e-05,2]
[348361376,1736467831831,-153.0,8.948e-05,2]
[348361377,1736467831840,-250.0,8.948e-05,2]
[348361378,1736467831850,-3018.0,8.948e-05,2]
[348361379,1736467831859,-250.0,8.948e-05,2]
[348361380,1736467831871,-1000.0,9.071e-05,2]
[348361381,1736467831880,-411.49,9.09e-05,2]
[348361382,1736467831894,-5512.0,9.262e-05,2]
[348361383,1736467831906,-167.43,9.429e-05,2]
[348361384,1736467831915,-1103.2601,9.737e-05,2]
[348361385,1736467831925,-150.0,9.737e-05,2]
[348361386,1736467831935,-801.6407,9.738e-05,2]
[348361387,1736467831945,-1891.7575,9.738e-05,2]
[348361388,1736467831954,-3573.1061,9.738e-05,2]
[348361389,1736467831964,-6707.93517577,9.738e-05,2]
[348361390,1736467832083,-446.05840089,9.738e-05,2]
[348361391,1736467832095,-2401.83022334,9.738e-05,2]
[348361392,1736467832105,-2329.3008,9.738e-05,2]
[348361393,1736467832115,-500.0,9.837e-05,2]
[348361394,1736467832128,-500.0,9.837e-05,2]
[348361395,1736467832137,-452.44442061,9.837e-05,2]
[348361396,1736467832151,-47.55557939,9.837e-05,2]
[348361397,1736467832160,-380.65538193,9.837e-05,2]
[348361398,1736467835409,-500.0,9.837e-05,2]
[348361399,1736467835419,-21.20893333,9.837e-05,2]
[348361400,1736467835430,-478.79106667,9.837e-05,2]
[348361401,1736467835441,-500.0,9.837e-05,2]
[348361402,1736467835451,-615.18,9.837e-05,2]
[348361403,1736467835463,-659.34,9.837e-05,2]
[348361404,1736467835475,-500.0,9.837e-05,2]
[348361405,1736467835485,-500.0,9.837e-05,2]
[348361406,1736467835496,-500.0,9.837e-05,2]
[348361407,1736467835507,-552.8,9.837e-05,2]
[348361408,1736467835517,-500.0,9.837e-05,2]
[348361409,1736467835529,-796.37,9.837e-05,2]
[348361410,1736467835539,-500.0,9.837e-05,2]
[348361411,1736467835549,-500.0,9.837e-05,2]
[348361412,1736467835558,-500.0,9.837e-05,2]
[348361413,1736467835568,-505.63,9.837e-05,2]
[348361414,1736467835578,-500.0,9.837e-05,2]
[348361415,1736467835589,-800.35,9.837e-05,2]
[348361416,1736467835600,-461.88262145,9.837e-05,2]
[348361417,1736467835626,-38.11737855,9.837e-05,2]
[348361418,1736467835637,-793.58,9.837e-05,2]
[348361419,1736467835906,-500.0,9.837e-05,2]
[348361420,1736467835919,-500.0,9.837e-05,2]
[348361421,1736467835929,-627.29,9.837e-05,2]
[348361422,1736467835939,-1052.4,9.837e-05,2]
[348361423,1736467835948,-525.53,9.837e-05,2]
[348361424,1736467835958,-500.0,9.837e-05,2]
[348361425,1736467835968,-500.0,9.837e-05,2]
[348361426,1736467835977,-500.0,9.837e-05,2]
[348361427,1736467835987,-679.29,9.837e-05,2]
[348361428,1736467835997,-809.4,9.837e-05,2]
[348361429,1736467836006,-585.06,9.837e-05,2]
[348361430,1736467836016,-896.92,9.837e-05,2]
[348361431,1736467836027,-500.0,9.837e-05,2]
[348361432,1736467836036,-631.72,9.837e-05,2]
[348361433,1736467836046,-610.35,9.837e-05,2]
[348361434,1736467836056,-580.74,9.837e-05,2]
[348361435,1736467836065,-500.0,9.837e-05,2]
[348361436,1736467836075,-545.68,9.837e-05,2]
[348361437,1736467836084,-500.0,9.837e-05,2]
[348361438,1736467836094,-500.0,9.837e-05,2]
[348361439,1736467836104,-720.29,9.837e-05,2]
[348361440,1736467836113,-1008.76,9.837e-05,2]
[348361441,1736467836122,-526.46,9.837e-05,2]
[348361442,1736467836132,-500.0,9.837e-05,2]
[348361443,1736467836144,-727.39,9.837e-05,2]
[348361444,1736467836153,-1998.85,9.837e-05,2]
[348361445,1736467836163,-897.09,9.837e-05,2]
[348361446,1736467836172,-1060.42,9.837e-05,2]
[348361447,1736467836182,-500.0,9.837e-05,2]
[348361448,1736467836191,-500.0,9.837e-05,2]
[348361449,1736467836201,-500.0,9.837e-05,2]
[348361450,1736467836210,-500.0,9.837e-05,2]
[348361451,1736467836219,-581.44,9.837e-05,2]
[348361452,1736467836229,-500.0,9.837e-05,2]
[348361453,1736467836238,-500.0,9.837e-05,2]
[348361454,1736467836247,-1353.44,9.837e-05,2]
[348361455,1736467836257,-526.44,9.837e-05,2]
[348361456,1736467836266,-3237.3,9.837e-05,2]
[348361457,1736467836276,-515.11,9.837e-05,2]
[348361458,1736467836285,-9448.07,9.837e-05,2]
[348361459,1736467836295,-153.0,9.837e-05,2]
[348361460,1736467836304,-1131.14,9.837e-05,2]
[348361461,1736467836314,-1043.57,9.837e-05,2]
[348361462,1736467836324,-500.0,9.837e-05,2]
[348361463,1736467836334,-1094.79,9.837e-05,2]
[348361464,1736467836343,-1164.5,9.837e-05,2]
[348361465,1736467836353,-1423.19,9.837e-05,2]
[348361466,1736467836363,-1300.05,9.837e-05,2]
[348361467,1736467836374,-1450.3,9.837e-05,2]
[348361468,1736467836384,-500.0,9.837e-05,2]
[348361469,1736467836396,-1921.15,9.837e-05,2]
[348361470,1736467836405,-2555.85,9.837e-05,2]
[348361471,1736467836414,-500.0,9.837e-05,2]
[348361472,1736467836424,-500.0,9.837e-05,2]
[348361473,1736467836433,-500.0,9.837e-05,2]
[348361474,1736467836444,-714.82,9.837e-05,2]
[348361475,1736467836455,-2253.23,9.837e-05,2]
[348361476,1736467836464,-500.0,9.837e-05,2]
[348361477,1736467836474,-4857.11,9.837e-05,2]
[348361478,1736467836483,-3515.19,9.837e-05,2]
[348361479,1736467836493,-3312.18,9.837e-05,2]
[348361480,1736467836503,-500.0,9.837e-05,2]
[348361481,1736467836512,-964.25,9.837e-05,2]
[348361482,1736467836521,-500.0,9.837e-05,2]
[348361483,1736467836531,-500.0,9.837e-05,2]
[348361484,1736467836540,-767.74,9.837e-05,2]
[348361485,1736467836548,-2175.42,9.837e-05,2]
[348361486,1736467836558,-1045.06,9.837e-05,2]
[348361487,1736467836567,-516.24,9.837e-05,2]
[348361488,1736467836577,-500.0,9.837e-05,2]
[348361489,1736467836586,-505.54,9.837e-05,2]
[348361490,1736467836595,-2120.55,9.837e-05,2]
[348361491,1736467836604,-1442.35,9.837e-05,2]
[348361492,1736467836613,-2186.38,9.837e-05,2]
[348361493,1736467836622,-527.1,9.837e-05,2]
[348361494,1736467836631,-3553.53,9.837e-05,2]
[348361495,1736467836642,-1814.34,9.837e-05,2]
[348361496,1736467836652,-625.04165177,9.837e-05,2]
[348361497,1736467836661,-500.0,9.837e-05,2]
[348361498,1736467836671,-904.03,9.837e-05,2]
[348361499,1736467836681,-1747.36,9.837e-05,2]
[348361500,1736467836691,-500.0,9.837e-05,2]
[348361501,1736467836701,-1318.67,9.837e-05,2]
[348361502,1736467836710,-1294.38,9.837e-05,2]
[348361503,1736467836720,-644.35,9.837e-05,2]
[348361504,1736467836730,-996.310472,9.837e-05,2]
[348361505,1736467836739,-500.0,9.837e-05,2]
[348361506,1736467836749,-697.92,9.837e-05,2]
[348361507,1736467836758,-624.94,9.837e-05,2]
[348361508,1736467836768,-2287.07,9.837e-05,2]
[348361509,1736467836777,-500.0,9.837e-05,2]
[348361510,1736467836787,-1249.37,9.837e-05,2]
[348361511,1736467836797,-1010.210926,9.837e-05,2]
[348361512,1736467836806,-1699.46,9.837e-05,2]
[348361513,1736467836816,-1072.66,9.837e-05,2]
[348361514,1736467836826,-670.53,9.837e-05,2]
[348361515,1736467836836,-158.148968,9.837e-05,2]
[348361516,1736467836845,-1122.28,9.837e-05,2]
[348361517,1736467836856,-3496.02,9.837e-05,2]
[348361518,1736467836865,-555.15,9.837e-05,2]
[348361519,1736467836874,-4447.51,9.837e-05,2]
[348361520,1736467836883,-1152.74,9.837e-05,2]
[348361521,1736467836895,-500.0,9.837e-05,2]
[348361522,1736467836904,-1136.1,9.837e-05,2]
[348361523,1736467836914,-1540.7,9.837e-05,2]
[348361524,1736467836924,-500.0,9.838e-05,2]
[348361525,1736467836933,-500.0,9.838e-05,2]
[348361526,1736467836943,-500.0,9.838e-05,2]
[348361527,1736467836952,-500.0,9.838e-05,2]
[348361528,1736467836962,-500.0,9.838e-05,2]
[348361529,1736467836973,-500.0,9.838e-05,2]
[348361530,1736467836982,-500.0,9.838e-05,2]
[348361531,1736467836992,-608.05,9.838e-05,2]
[348361532,1736467837001,-500.0,9.838e-05,2]
[348361533,1736467837011,-500.0,9.838e-05,2]
[348361534,1736467837019,-500.0,9.838e-05,2]
[348361535,1736467837029,-500.0,9.838e-05,2]
[348361536,1736467837038,-500.0,9.838e-05,2]
[348361537,1736467837047,-500.0,9.838e-05,2]
[348361538,1736467837057,-500.0,9.838e-05,2]
[348361539,1736467837066,-441.20845842,9.838e-05,2]
[348361540,1736467837075,-500.0,9.838e-05,2]
[348361541,1736467837085,-500.0,9.838e-05,2]
[348361542,1736467837094,-500.0,9.838e-05,2]
[348361543,1736467837103,-500.0,9.838e-05,2]
[348361544,1736467837113,-500.0,9.838e-05,2]
[348361545,1736467837122,-500.0,9.838e-05,2]
[348361546,1736467837132,-500.0,9.838e-05,2]
[348361547,1736467837142,-500.0,9.838e-05,2]
[348361548,1736467837152,-500.0,9.838e-05,2]
[348361549,1736467837162,-618.24,9.838e-05,2]
[348361550,1736467837171,-500.0,9.838e-05,2]
[348361551,1736467837181,-500.0,9.838e-05,2]
[348361552,1736467837191,-500.0,9.838e-05,2]
[348361553,1736467837200,-500.0,9.838e-05,2]
[348361554,1736467837209,-500.0,9.838e-05,2]
[348361555,1736467837218,-500.0,9.838e-05,2]
[348361556,1736467837227,-500.0,9.838e-05,2]
[348361557,1736467837236,-500.0,9.838e-05,2]
[348361558,1736467837245,-500.0,9.838e-05,2]
[348361559,1736467837255,-500.0,9.838e-05,2]
[348361560,1736467837265,-500.0,9.838e-05,2]
[348361561,1736467837274,-500.0,9.838e-05,2]
[348361562,1736467837283,-500.0,9.838e-05,2]
[348361563,1736467837292,-595.99794701,9.838e-05,2]
[348361564,1736467837301,-500.0,9.838e-05,2]
[348361565,1736467837310,-500.0,9.838e-05,2]
[348361566,1736467837319,-500.0,9.838e-05,2]
[348361567,1736467837329,-500.0,9.838e-05,2]
[348361568,1736467837338,-500.0,9.838e-05,2]
[348361569,1736467837347,-500.0,9.838e-05,2]
[348361570,1736467837356,-500.0,9.838e-05,2]
[348361571,1736467837365,-500.0,9.838e-05,2]
[348361572,1736467837374,-500.0,9.838e-05,2]
[348361573,1736467837384,-500.0,9.838e-05,2]
[348361574,1736467837394,-500.0,9.838e-05,2]
[348361575,1736467837404,-500.0,9.838e-05,2]
[348361576,1736467837414,-500.0,9.838e-05,2]
[348361577,1736467837423,-500.0,9.838e-05,2]
[348361578,1736467837433,-500.0,9.838e-05,2]
[348361579,1736467837442,-500.0,9.838e-05,2]
[348361580,1736467837452,-500.0,9.838e-05,2]
[348361581,1736467837462,-500.0,9.838e-05,2]
[348361582,1736467837471,-500.0,9.838e-05,2]
[348361583,1736467837481,-500.0,9.838e-05,2]
[348361584,1736467837490,-500.0,9.838e-05,2]
[348361585,1736467837501,-500.0,9.838e-05,2]
[348361586,1736467837511,-500.0,9.838e-05,2]
[348361587,1736467837521,-500.0,9.838e-05,2]
[348361588,1736467837530,-500.0,9.838e-05,2]
[348361589,1736467837539,-500.0,9.838e-05,2]
[348361590,1736467837549,-500.0,9.838e-05,2]
[348361591,1736467837558,-790.37,9.838e-05,2]
[348361592,1736467837568,-500.0,9.838e-05,2]
[348361593,1736467837578,-500.0,9.838e-05,2]
[348361594,1736467837587,-500.0,9.838e-05,2]
[348361595,1736467837596,-577.73,9.838e-05,2]
[348361597,1736467837606,-500.0,9.838e-05,2]
[348361598,1736467837615,-500.0,9.838e-05,2]
[348361599,1736467837625,-737.57,9.838e-05,2]
[348361600,1736467837634,-500.0,9.838e-05,2]
[348361601,1736467837645,-500.0,9.838e-05,2]
[348361602,1736467837655,-500.0,9.838e-05,2]
[348361603,1736467837665,-500.0,9.838e-05,2]
[348361604,1736467837675,-667.85,9.838e-05,2]
[348361605,1736467837684,-500.0,9.838e-05,2]
[348361606,1736467837694,-500.0,9.838e-05,2]
[348361607,1736467837703,-500.0,9.838e-05,2]
[348361608,1736467837714,-500.0,9.838e-05,2]
[348361609,1736467837724,-500.0,9.838e-05,2]
[348361610,1736467837733,-500.0,9.838e-05,2]
[348361611,1736467837743,-500.0,9.838e-05,2]
[348361612,1736467837752,-500.0,9.838e-05,2]
[348361613,1736467837762,-500.0,9.838e-05,2]
[348361614,1736467837771,-500.0,9.838e-05,2]
[348361615,1736467837780,-500.0,9.838e-05,2]
[348361616,1736467837789,-500.0,9.838e-05,2]
[348361617,1736467837799,-500.0,9.838e-05,2]
[348361618,1736467837809,-500.0,9.838e-05,2]
[348361619,1736467837820,-500.0,9.838e-05,2]
[348361620,1736467837834,-500.0,9.838e-05,2]
[348361621,1736467837844,-500.0,9.838e-05,2]
[348361622,1736467837854,-524.22,9.838e-05,2]
[348361623,1736467837864,-500.0,9.838e-05,2]
[348361624,1736467837876,-500.0,9.838e-05,2]
[348361625,1736467837885,-500.0,9.838e-05,2]
[348361626,1736467837896,-500.0,9.838e-05,2]
[348361627,1736467837907,-921.57,9.838e-05,2]
[348361628,1736467837917,-500.0,9.838e-05,2]
[348361629,1736467837927,-500.0,9.838e-05,2]
[348361630,1736467837936,-500.0,9.838e-05,2]
[348361631,1736467837945,-500.0,9.838e-05,2]
[348361632,1736467837954,-500.0,9.838e-05,2]
[348361633,1736467837964,-500.0,9.838e-05,2]
[348361634,1736467837973,-500.0,9.838e-05,2]
[348361635,1736467837983,-500.0,9.838e-05,2]
[348361636,1736467837993,-500.0,9.838e-05,2]
[348361637,1736467838002,-500.0,9.838e-05,2]
[348361638,1736467838012,-500.0,9.838e-05,2]
[348361639,1736467838021,-500.0,9.838e-05,2]
[348361640,1736467838031,-500.0,9.838e-05,2]
[348361642,1736467838040,-500.0,9.838e-05,2]
[348361643,1736467838050,-729.7,9.838e-05,2]
[348361644,1736467838060,-500.0,9.838e-05,2]
[348361645,1736467838070,-500.0,9.838e-05,2]
[348361646,1736467838080,-500.0,9.838e-05,2]
[348361647,1736467838089,-500.0,9.838e-05,2]
[348361648,1736467838099,-500.0,9.838e-05,2]
[348361649,1736467838109,-500.0,9.838e-05,2]
[348361650,1736467838120,-504.41,9.838e-05,2]
[348361651,1736467838129,-1107.57,9.838e-05,2]
[348361652,1736467838139,-500.0,9.838e-05,2]
[348361653,1736467838151,-500.0,9.838e-05,2]
[348361654,1736467838160,-500.0,9.838e-05,2]
[348361655,1736467838170,-403.31135243,9.838e-05,2]
[348361656,1736467838179,-500.0,9.838e-05,2]
[348361657,1736467838190,-500.0,9.838e-05,2]
[348361658,1736467838202,-500.0,9.838e-05,2]
[348361659,1736467838212,-500.0,9.838e-05,2]
[348361660,1736467838221,-500.0,9.838e-05,2]
[348361661,1736467838231,-500.0,9.838e-05,2]
[348361662,1736467838242,-967.99,9.838e-05,2]
[348361663,1736467838253,-500.0,9.838e-05,2]
[348361664,1736467838262,-500.0,9.838e-05,2]
[348361665,1736467838273,-500.0,9.838e-05,2]
[348361666,1736467838283,-501.46,9.838e-05,2]
[348361667,1736467838291,-500.0,9.838e-05,2]
[348361668,1736467838301,-500.0,9.838e-05,2]
[348361669,1736467838311,-660.0,9.838e-05,2]
[348361670,1736467838319,-500.0,9.838e-05,2]
[348361671,1736467838329,-500.0,9.838e-05,2]
[348361672,1736467838338,-500.0,9.838e-05,2]
[348361673,1736467838347,-500.0,9.838e-05,2]
[348361674,1736467838356,-500.0,9.838e-05,2]
[348361675,1736467838368,-500.0,9.838e-05,2]
[348361676,1736467838377,-500.0,9.838e-05,2]
[348361677,1736467838387,-500.0,9.838e-05,2]
[348361678,1736467838396,-500.0,9.838e-05,2]
[348361679,1736467838405,-500.0,9.838e-05,2]
[348361680,1736467838415,-500.0,9.838e-05,2]
[348361681,1736467838426,-500.0,9.838e-05,2]
[348361682,1736467838436,-500.0,9.838e-05,2]
[348361683,1736467838445,-500.0,9.838e-05,2]
[348361684,1736467838454,-500.0,9.838e-05,2]
[348361685,1736467838463,-500.0,9.838e-05,2]
[348361686,1736467838473,-500.0,9.838e-05,2]
[348361687,1736467838483,-500.0,9.838e-05,2]
[348361688,1736467838494,-500.0,9.838e-05,2]
[348361689,1736467838504,-500.0,9.838e-05,2]
[348361690,1736467838514,-500.0,9.838e-05,2]
[348361691,1736467838525,-500.0,9.838e-05,2]
[348361692,1736467838533,-500.0,9.838e-05,2]
[348361693,1736467838542,-500.0,9.838e-05,2]
[348361694,1736467838551,-500.0,9.838e-05,2]
[348361695,1736467838561,-500.0,9.838e-05,2]
[348361696,1736467838570,-500.0,9.838e-05,2]
[348361697,1736467838579,-500.0,9.838e-05,2]
[348361698,1736467838588,-500.0,9.838e-05,2]
[348361699,1736467838597,-591.66028167,9.838e-05,2]
[348361700,1736467838606,-500.0,9.838e-05,2]
[348361701,1736467838615,-500.0,9.838e-05,2]
[348361702,1736467838624,-500.0,9.838e-05,2]
[348361703,1736467838633,-500.0,9.838e-05,2]
[348361704,1736467838642,-854.68,9.838e-05,2]
[348361705,1736467838651,-500.0,9.838e-05,2]
[348361706,1736467838660,-500.0,9.838e-05,2]
[348361707,1736467838669,-500.0,9.838e-05,2]
[348361708,1736467838678,-682.26,9.838e-05,2]
[348361709,1736467838687,-511.98,9.838e-05,2]
[348361710,1736467838696,-500.0,9.838e-05,2]
[348361711,1736467838706,-500.0,9.838e-05,2]
[348361712,1736467838715,-500.0,9.838e-05,2]
[348361713,1736467838724,-500.0,9.838e-05,2]
[348361714,1736467838733,-500.0,9.838e-05,2]
[348361715,1736467838742,-500.0,9.838e-05,2]
[348361716,1736467838753,-500.0,9.838e-05,2]
[348361717,1736467838762,-500.0,9.838e-05,2]
[348361718,1736467838772,-500.0,9.838e-05,2]
[348361719,1736467838782,-500.0,9.838e-05,2]
[348361720,1736467838791,-500.0,9.838e-05,2]
[348361721,1736467838800,-500.0,9.838e-05,2]
[348361722,1736467838809,-595.6,9.838e-05,2]
[348361723,1736467838821,-939.47,9.838e-05,2]
[348361724,1736467838830,-500.0,9.838e-05,2]
[348361725,1736467838839,-500.0,9.838e-05,2]
[348361726,1736467838849,-500.0,9.838e-05,2]
[348361727,1736467838858,-500.0,9.838e-05,2]
[348361728,1736467838867,-500.0,9.838e-05,2]
[348361729,1736467838877,-500.0,9.838e-05,2]
[348361730,1736467838886,-500.0,9.838e-05,2]
[348361731,1736467838898,-500.0,9.838e-05,2]
[348361732,1736467838907,-500.0,9.838e-05,2]
[348361733,1736467838916,-781.38,9.838e-05,2]
[348361734,1736467838926,-500.0,9.838e-05,2]
[348361735,1736467838935,-511.18,9.838e-05,2]
[348361736,1736467838945,-500.0,9.838e-05,2]
[348361737,1736467838954,-500.0,9.838e-05,2]
[348361738,1736467838964,-449.929933,9.838e-05,2]
[348361739,1736467838974,-500.0,9.838e-05,2]
[348361740,1736467838983,-500.0,9.838e-05,2]
[348361741,1736467838993,-500.0,9.838e-05,2]
[348361742,1736467839002,-500.0,9.838e-05,2]
[348361743,1736467839012,-500.0,9.838e-05,2]
[348361744,1736467839023,-500.0,9.838e-05,2]
[348361745,1736467839033,-532.76,9.838e-05,2]
[348361746,1736467839042,-500.0,9.838e-05,2]
[348361747,1736467839051,-623.30570749,9.838e-05,2]
[348361748,1736467839060,-430.10842665,9.838e-05,2]
[348361749,1736467839069,-585.37,9.838e-05,2]
[348361750,1736467839080,-500.0,9.838e-05,2]
[348361751,1736467839089,-500.0,9.838e-05,2]
[348361752,1736467839099,-500.0,9.838e-05,2]
[348361753,1736467839108,-500.0,9.838e-05,2]
[348361754,1736467839117,-500.0,9.838e-05,2]
[348361755,1736467839127,-500.0,9.838e-05,2]
[348361756,1736467839137,-500.0,9.838e-05,2]
[348361757,1736467839149,-500.0,9.838e-05,2]
[348361758,1736467839158,-500.0,9.838e-05,2]
[348361759,1736467839167,-500.0,9.838e-05,2]
[348361760,1736467839177,-1060.06,9.838e-05,2]
[348361761,1736467839187,-500.0,9.838e-05,2]
[348361762,1736467839199,-500.0,9.838e-05,2]
[348361763,1736467839210,-500.0,9.838e-05,2]
[348361764,1736467839220,-319.75032494,9.838e-05,2]
[348361765,1736467839230,-500.0,9.838e-05,2]
[348361766,1736467839240,-500.0,9.838e-05,2]
[348361767,1736467839249,-500.0,9.838e-05,2]
[348361768,1736467839258,-500.0,9.838e-05,2]
[348361769,1736467839267,-500.0,9.838e-05,2]
[348361770,1736467839277,-500.0,9.838e-05,2]
[348361771,1736467839286,-500.0,9.838e-05,2]
[348361772,1736467839295,-500.0,9.838e-05,2]
[348361773,1736467839304,-500.0,9.838e-05,2]
[348361774,1736467839313,-500.0,9.838e-05,2]
[348361775,1736467839323,-500.0,9.838e-05,2]
[348361776,1736467839332,-500.0,9.838e-05,2]
[348361777,1736467839341,-500.0,9.838e-05,2]
[348361778,1736467839350,-500.0,9.838e-05,2]
[348361779,1736467839359,-500.0,9.838e-05,2]
[348361780,1736467839368,-500.0,9.838e-05,2]
[348361781,1736467839378,-883.21,9.838e-05,2]
[348361782,1736467839386,-630.7,9.838e-05,2]
[348361783,1736467839395,-500.0,9.838e-05,2]
[348361784,1736467839404,-161.28958577,9.838e-05,2]
[348361785,1736467839413,-500.0,9.838e-05,2]
[348361786,1736467839423,-500.0,9.838e-05,2]
[348361787,1736467839432,-500.0,9.838e-05,2]
[348361788,1736467839444,-257.43604024,9.838e-05,2]
[348361789,1736467839455,-500.0,9.838e-05,2]
[348361790,1736467839467,-500.0,9.838e-05,2]
[348361791,1736467839476,-500.0,9.838e-05,2]
[348361792,1736467839486,-500.0,9.838e-05,2]
[348361793,1736467839495,-660.27,9.838e-05,2]
[348361794,1736467839504,-500.0,9.838e-05,2]
[348361795,1736467839514,-500.0,9.838e-05,2]
[348361796,1736467839524,-500.0,9.838e-05,2]
[348361797,1736467839534,-500.0,9.838e-05,2]
[348361798,1736467839543,-500.0,9.838e-05,2]
[348361799,1736467839554,-500.23604316,9.838e-05,2]
[348361800,1736467839563,-500.0,9.838e-05,2]
[348361801,1736467839574,-500.0,9.838e-05,2]
[348361802,1736467839584,-500.0,9.838e-05,2]
[348361803,1736467839594,-500.0,9.838e-05,2]
[348361805,1736467839603,-500.0,9.838e-05,2]
[348361806,1736467839613,-150.0,9.838e-05,2]
[348361807,1736467839623,-500.0,9.838e-05,2]
[348361808,1736467839632,-500.0,9.838e-05,2]
[348361809,1736467839641,-921.2,9.838e-05,2]
[348361811,1736467839654,-500.0,9.838e-05,2]
[348361812,1736467839664,-391.0924263,9.838e-05,2]
[348361813,1736467839674,-500.0,9.838e-05,2]
[348361814,1736467839683,-593.13,9.838e-05,2]
[348361815,1736467839692,-500.0,9.838e-05,2]
[348361816,1736467839702,-500.0,9.838e-05,2]
[348361817,1736467839711,-500.0,9.838e-05,2]
[348361818,1736467839720,-523.08,9.838e-05,2]
[348361819,1736467839730,-500.0,9.838e-05,2]
[348361820,1736467839739,-988.44,9.838e-05,2]
[348361821,1736467839749,-500.0,9.838e-05,2]
[348361822,1736467839758,-500.0,9.838e-05,2]
[348361823,1736467839769,-500.0,9.838e-05,2]
[348361824,1736467839778,-500.0,9.838e-05,2]
[348361825,1736467839788,-222.58377241,9.838e-05,2]
[348361826,1736467839799,-500.0,9.838e-05,2]
[348361827,1736467839808,-500.0,9.838e-05,2]
[348361828,1736467839821,-500.0,9.838e-05,2]
[348361829,1736467839831,-527.43,9.838e-05,2]
[348361830,1736467839841,-500.0,9.838e-05,2]
[348361831,1736467839851,-500.0,9.838e-05,2]
[348361832,1736467839861,-730.27,9.838e-05,2]
[348361833,1736467839870,-500.0,9.838e-05,2]
[348361834,1736467839880,-500.0,9.838e-05,2]
[348361835,1736467839889,-500.0,9.838e-05,2]
[348361836,1736467839903,-500.0,9.838e-05,2]
[348361837,1736467839914,-511.02,9.838e-05,2]
[348361838,1736467839924,-500.0,9.838e-05,2]
[348361839,1736467839934,-500.0,9.838e-05,2]
[348361840,1736467839943,-500.0,9.838e-05,2]
[348361841,1736467839952,-798.86,9.838e-05,2]
[348361842,1736467840155,-987.84,9.838e-05,2]
[348361843,1736467840165,-500.0,9.838e-05,2]
[348361844,1736467840175,-500.0,9.838e-05,2]
[348361845,1736467840184,-500.0,9.838e-05,2]
[348361846,1736467840194,-500.0,9.838e-05,2]
[348361847,1736467840204,-500.0,9.838e-05,2]
[348361848,1736467840214,-500.0,9.838e-05,2]
[348361849,1736467840225,-634.25,9.838e-05,2]
[348361851,1736467840234,-500.0,9.838e-05,2]
[348361853,1736467840243,-457.92483207,9.838e-05,2]
[348361855,1736467840254,-500.0,9.838e-05,2]
[348361857,1736467840263,-500.0,9.838e-05,2]
[348361859,1736467840273,-500.0,9.838e-05,2]
[348361861,1736467840282,-538.28,9.838e-05,2]
[348361863,1736467840291,-500.0,9.838e-05,2]
[348361865,1736467840301,-500.0,9.838e-05,2]
[348361867,1736467840310,-500.0,9.838e-05,2]
[348361869,1736467840320,-500.0,9.838e-05,2]
[348361871,1736467840329,-500.0,9.838e-05,2]
[348361872,1736467840341,-500.0,9.838e-05,2]
[348361874,1736467840351,-500.0,9.838e-05,2]
[348361876,1736467840382,-533.31,9.838e-05,2]
[348361878,1736467840391,-500.0,9.838e-05,2]